Cogmind - Beta 9.1 @@@ ROGUE MODE // 2019.11.04 @ 22:00:27 Player: MrPainting Result: Self-destructed Performance ------------- Evolutions (1) 500 Regions Visited (3) 600 Robots Destroyed (59) 295 Value Destroyed (1358) 1358 Prototype IDs (6) 120 Alien Tech Used (0) 0 Bonus (222) 222 TOTAL SCORE: 3095 Bonus ------- High Alert Combat Kills 179 Follower Combat Kills 190 Friendly Fire -147 Cogmind --------- Core Integrity 156/400 Matter 295/300 Energy 280/280 System Corruption 11% Temperature Cool (0) Location -9/Storage Parts ------- Power (1) Cooled Ion Engine Propulsion (3) Light Treads Light Treads Light Treads Utility (3) Signal Interpreter Hardened Light Armor Plating Hacking Suite Weapon (2) Assault Cannon Rocket Launcher Inventory (4) Light Treads Advanced Beam Cannon Advanced Beam Cannon Rocket Launcher Peak State ------------ Power Heavy Ion Engine Propulsion Improved Flight Unit Improved Flight Unit Improved Flight Unit Utility Signal Interpreter Hardened Light Armor Plating Hacking Suite Weapon Advanced Beam Cannon Assault Cannon Inventory Light Treads Beam Cannon Rocket Launcher Rocket Launcher [Rating: 24] Favorites ----------- Power Ion Engine Engine Ion Engine Propulsion Light Treads Treads Light Treads Leg Aluminum Leg Flight Unit Improved Flight Unit Utility Signal Interpreter Device Cooling System Processor Signal Interpreter Hackware Hacking Suite Protection Hardened Light Armor Plating Weapon Assault Cannon Energy Gun Spread Laser Energy Cannon Advanced Beam Cannon Ballistic Gun Assault Rifle Ballistic Cannon Assault Cannon Launcher Rocket Launcher Build | -11 -10 -9 -9 ------- Run | Scr Mat Mat Sto Slots Evolved 2 | . . 2 . Power . | . . . . Propulsion 1 | . . 1 . Utility 1 | . . 1 . Weapon . | . . . . Parts Attached 45 | 7 6 16 16 Power 5 | 1 . 2 2 Engine 5 | 1 . 2 2 Core . | . . . . Reactor . | . . . . Propulsion 17 | 4 . 7 6 Treads 7 | 2 . . 5 Leg 6 | 2 . 4 . Wheel . | . . . . Hover . | . . . . Flight 4 | . . 3 1 Utility 7 | . 2 3 2 Device 2 | . . 2 . Storage . | . . . . Processor 2 | . 2 . . Hackware 2 | . . 1 1 Protection 1 | . . . 1 Artifact . | . . . . Weapon 16 | 2 4 4 6 Energy Gun 6 | 1 2 2 1 Energy Cannon 1 | . . . 1 Ballistic Gun 3 | 1 1 . 1 Ballistic Cannon 4 | . . 2 2 Launcher 2 | . 1 . 1 Special Weapon . | . . . . Impact Weapon . | . . . . Slashing Weapon . | . . . . Piercing Weapon . | . . . . Special Melee Weapon . | . . . . Unidentified Prototypes 6 | . . 1 5 Parts Lost 7 | . . 7 . Power 2 | . . 2 . Propulsion 1 | . . 1 . Utility 2 | . . 2 . Weapon 2 | . . 2 . Highest Loss Streak 5 | . . 5 . Average Slot Usage (%) 92 | . 83 87 97 Engine 11 | . 14 9 11 Treads 21 | . 28 6 27 Leg 2 | . . 9 . Flight 5 | . . 9 5 Device 1 | . . 6 . Processor 12 | . 12 14 11 Hackware 8 | . . 8 10 Protection 5 | . . . 9 Energy Gun 8 | . 17 20 . Energy Cannon 4 | . . . 8 Ballistic Gun 1 | . 10 . . Ballistic Cannon 7 | . . 1 11 Naked Turns . | . . . . Heaviest Build 22 | 9 11 15 22 Greatest Support 60 | 40 40 40 60 Greatest Overweight (x) 3 | 2 . 3 1 Average Overweight (x) . | . . . . Largest Inventory Capacity 4 | 4 4 4 4 Average Capacity 4 | 4 4 4 4 Most Carried 4 | 1 4 4 4 Average Carried 3 | . 2 3 3 Final Capacity 4 | 4 4 4 4 Final Carried 4 | . 4 3 4 Class Distribution -------------------- 41% | Scavenger-Mutant 27% | Mutant 14% | Commander-Mutant 11% | Sprinter 4% | Commander-Sprinter Dominant Class ---------------- Mutant | -10/Materials Scavenger-Mutant | -9/Materials Scavenger-Mutant | -9/Storage Resources | -11 -10 -9 -9 ----------- Run | Scr Mat Mat Sto Matter Collected 1066 | 214 48 285 519 Remotely . | . . . . Salvage Created 1681 | . 122 529 1030 Parts 124 | . 20 36 68 Haulers Intercepted 6 | . . 1 5 Recyclers Shooed 2 | . 1 . 1 Parts Field Recycled . | . . . . Retrieved Matter . | . . . . Parts Self-Destructed . | . . . . Prevented . | . . . . Kills | -11 -10 -9 -9 ------- Run | Scr Mat Mat Sto Combat Hostiles Destroyed 39 | . 8 14 17 Guns 14 | . 1 13 . Cannons 14 | . . 1 13 AOE 11 | . 7 . 4 Classes Destroyed 11 | . 4 4 3 Worker 2 | . . . 2 Builder 2 | . . . 2 Hauler 6 | . . 1 5 Recycler 2 | . . 1 1 Operator 3 | . 1 1 1 Watcher 4 | . 2 1 1 Swarmer 13 | . 6 3 4 Grunt 14 | . 2 6 6 Brawler 1 | . . 1 . Duelist 1 | . . . 1 Sentry 11 | . . 4 7 Best Kill Streak 9 | . 9 4 7 Combat Bots Only 8 | . 8 4 4 Max Kills in Single Turn 4 | . 4 1 4 Gunslinging . | . . . . Exploded 4 | . 4 . 4 Melee . | . . . . Uniques/NPCs Destroyed . | . . . . Combat | -11 -10 -9 -9 -------- Run | Scr Mat Mat Sto Damage Taken 1532 | . 304 685 543 Core 307 | . 63 175 69 Absorbed by Shields . | . . . . Core Remaining (%) 87 | 100 74 . . Volleys Fired 107 | . 8 47 52 Largest 2 | . 2 2 2 Hottest 130 | . 60 130 112 Shots Fired 195 | . 13 84 98 Gun 90 | . 10 80 . Cannon 101 | . . 4 97 Launcher 4 | . 3 . 1 Special . | . . . . Kinetic 67 | . 5 4 58 Thermal 119 | . . 80 39 Explosive 4 | . 3 . 1 Electromagnetic 5 | . 5 . . Robot Hit Streak 27 | . 4 27 13 Robot Miss Streak 13 | . 2 13 3 Penetration Max . | . . . . Secondary Targets 3 | . 1 2 . Max Gunslinging Chain 1 | . 1 1 . Shots Hit Robots 138 | . 8 77 53 Core Hits 121 | . 13 77 31 Critical Hits 4 | . . . 4 Critical Kills 2 | . . . 2 Critical Parts Destroyed 1 | . . . 1 Melee Attacks . | . . . . Impact . | . . . . Slashing . | . . . . Piercing . | . . . . Sneak Attacks . | . . . . Combat Hostiles . | . . . . Follow-up Attacks . | . . . . Damage Inflicted 2780 | . 590 833 1357 Guns 873 | . 110 763 . Cannons 1257 | . . 70 1187 Explosions 650 | . 480 . 170 Melee . | . . . . Ramming . | . . . . Kinetic 1037 | . 67 70 900 Thermal 1050 | . . 763 287 Explosive 650 | . 480 . 170 Electromagnetic 43 | . 43 . . Impact . | . . . . Slashing . | . . . . Piercing . | . . . . Highest Corruption 11 | . . 11 11 Average Corruption 10 | . . 9 11 Corruption Purged . | . . . . Effects 58 | . . 3 55 Message Errors 10 | . . 1 9 Matter Fused 9 | . . 1 8 Heat Flow Errors 3 | . . . 3 Energy Discharges 3 | . . . 3 Data Loss (minor) 2 | . . . 2 Data Loss (major) 3 | . . . 3 Misfires 2 | . . . 2 Alerts 1 | . . . 1 Misdirections 11 | . . . 11 Targeting Errors 12 | . . 1 11 Weapon Failures 2 | . . . 2 Overload Shots . | . . . . Overflow Damage 56 | . 12 . 44 Projectiles 44 | . . . 44 Explosions 12 | . 12 . . Melee . | . . . . Knockbacks 4 | . . . 4 Impact . | . . . . Kinetic 4 | . . . 4 Secondary . | . . . . Self-Inflicted Damage 141 | . 83 . 58 Shots 4 | . 3 . 1 Rammed . | . . . . Targets Rammed . | . . . . Kicked . | . . . . Crushed . | . . . . Highest Temperature 658 | . 42 658 397 Average Temperature 127 | . 21 194 92 Received Heat Transfer 399 | . 66 207 126 Effects 16 | . . 16 . Shutdowns 3 | . . 3 . Energy Bleed 1 | . . 1 . Interference 7 | . . 7 . Short Circuit 2 | . . 2 . Damage (major) 2 | . . 2 . Damage (core) 1 | . . 1 . Siege Activations . | . . . . Robots Corrupted . | . . . . Combat Hostiles . | . . . . Parts Fried 1 | . 1 . . Impact Corruptions . | . . . . Robots Melted . | . . . . Combat Hostiles . | . . . . Parts Melted . | . . . . Heat Transferred 1458 | . . 940 518 Parts Sabotaged . | . . . . Parts Stolen . | . . . . Parts Stripped . | . . . . Power Chain Reactions . | . . . . Missiles Intercepted . | . . . . Alert | -11 -10 -9 -9 ------- Run | Scr Mat Mat Sto Peak Influence 841 | . 224 568 841 Average Influence 387 | . 124 298 532 Maximum Alert Level 3 | . 1 2 3 Low Security (%) 20 | . . . . Level 1 27 | . . . . Level 2 43 | . . . . Level 3 8 | . . . . Level 4 . | . . . . Level 5 . | . . . . High Security . | . . . . Max Security . | . . . . Squads Dispatched 9 | . 1 2 6 Investigation 1 | . . . 1 Extermination . | . . . . Reinforcement 5 | . 1 2 2 Assault . | . . . . Garrison 3 | . . . 3 Intercept . | . . . . Construction Impeded . | . . . . Haulers Reinforced . | . . . . Stealth | -11 -10 -9 -9 --------- Run | Scr Mat Mat Sto Distress Signals 5 | . 1 1 3 Communications Jammed . | . . . . Distress Signals . | . . . . Times Spotted 55 | . 12 19 24 Peak Tracking Total 10 | . 10 4 4 Tactical Retreats . | . . . . Traps | -11 -10 -9 -9 ------- Run | Scr Mat Mat Sto Traps Triggered 1 | . . . 1 Indirectly . | . . . . Trap Hack Attempts . | . . . . Triggered . | . . . . Disarmed . | . . . . Reprogrammed . | . . . . Reused . | . . . . Traps Extracted . | . . . . Installed . | . . . . Triggered . | . . . . Machines | -11 -10 -9 -9 ---------- Run | Scr Mat Mat Sto Machines Disabled 6 | . . . 6 Max in Single Turn 2 | . . . 2 Machines Sabotaged . | . . . . Garrisons Compromised . | . . . . Overloaded Fab Kills . | . . . . Fab Network Shutdowns . | . . . . Hacking | -11 -10 -9 -9 --------- Run | Scr Mat Mat Sto Machines Accessed 7 | . . . 7 Terminals 7 | . . . 7 Fabricators . | . . . . Repair Stations . | . . . . Recycling Units . | . . . . Scanalyzers . | . . . . Garrison Access . | . . . . Total Hacks 22 | . . . 22 Successful 11 | . . . 11 Failed 11 | . . . 11 Catastrophic 1 | . . . 1 Database Lockouts . | . . . . Manual 10 | . . . 10 Terminals 22 | . . . 22 Fabricators . | . . . . Repair Stations . | . . . . Recycling Units . | . . . . Scanalyzers . | . . . . Garrison Access . | . . . . Terminal Hacks 8 | . . . 8 Part Schematic 2 | . . . 2 Open Door 3 | . . . 3 Terminal Index 3 | . . . 3 Fabricator Hacks . | . . . . Repair Station Hacks . | . . . . Recycling Unit Hacks . | . . . . Scanalyzer . | . . . . Garrison Access Hacks . | . . . . Unauthorized Hacks 8 | . . . 8 Terminals 3 | . . . 3 Botnet 3 | . . . 3 Fabricators . | . . . . Repair Stations . | . . . . Recycling Units . | . . . . Scanalyzers . | . . . . Garrison Access . | . . . . Data Cores Recovered . | . . . . Used . | . . . . Hacking Detections 6 | . . . 6 Full Trace Events 3 | . . . 3 Feedback Events . | . . . . Feedback Blocked . | . . . . Robot Schematics Acquired . | . . . . Robots Built . | . . . . Matter . | . . . . Time . | . . . . Total Robot Build Rating . | . . . . Part Schematics Acquired 2 | . . . 2 Parts Built . | . . . . Matter . | . . . . Time . | . . . . Total Part Build Rating . | . . . . Parts Repaired . | . . . . Time . | . . . . Parts Recycled . | . . . . Recycled Matter . | . . . . Retrieved Matter . | . . . . Retrieved Components . | . . . . Parts Scanalyzed . | . . . . Part Schematics Acquired . | . . . . Parts Damaged . | . . . . Bothacking | -11 -10 -9 -9 ------------ Run | Scr Mat Mat Sto Used RIF Installer . | . . . . Robots Hacked . | . . . . Non-combat . | . . . . Combat . | . . . . Robot Hacks Applied . | . . . . Relay Couplers Released . | . . . . Robots Rewired . | . . . . Allies Hacked . | . . . . Hacks Repelled . | . . . . Allies | -11 -10 -9 -9 -------- Run | Scr Mat Mat Sto Total Allies 10 | . . . 10 Largest Group 10 | . . . 10 Highest-Rated Group 88 | . . . 88 Highest-Rated Ally 16 | . . . 16 Total Orders . | . . . . Ally Attacks 51 | . . . 51 Total Damage 501 | . . . 501 Kills 7 | . . . 7 Allies Corrupted . | . . . . Allies Melted . | . . . . Intel | -11 -10 -9 -9 ------- Run | Scr Mat Mat Sto Robot Analysis Total . | . . . . Derelict Logs Recovered . | . . . . Drone Launches . | . . . . Drone Recoveries . | . . . . Exploration | -11 -10 -9 -9 ------------- Run | Scr Mat Mat Sto Turns Passed 1583 | 78 214 431 860 Spaces Moved 954 | 48 111 218 577 Core 25 | 11 . 14 . Treads 542 | 31 111 31 369 Legs 68 | 6 . 62 . Wheels . | . . . . Hover . | . . . . Flight 319 | . . 111 208 Fastest Speed 29 | 50 160 29 29 Average Speed 113 | 140 160 85 113 Slowest Speed 200 | 160 160 200 180 Overloaded Moves . | . . . . Propulsion Burnouts . | . . . . Robots Hopped 2 | . . 1 1 Cave-ins Triggered . | . . . . Exploration Rate (%) 33 | 4 23 22 84 Regions Visited 3 Branch Regions 1 Pre-discovered Areas . | . . . . Known Exits Taken 2 | . 1 1 . Unknown Exits Taken 1 | 1 . . . Scrap Searched . | . . . . Spaces Dug . | . . . . Terrain Destroyed 64 | . 25 1 38 Melee . | . . . . Projectile 12 | . . 1 11 AOE 52 | . 25 . 27 Actions | -11 -10 -9 -9 --------- Run | Scr Mat Mat Sto Total 1254 | 57 134 378 685 Wait 96 | . . 75 21 Move 947 | 47 110 215 575 Hop 2 | . . 1 1 Pick Up 25 | 1 7 11 6 Fast Attach 21 | 6 2 6 7 Attach 12 | 1 2 6 3 Detach 1 | . . 1 . Swap 12 | . 2 4 6 Drop 31 | 2 3 12 14 Fire 107 | . 8 47 52 Melee . | . . . . Ram . | . . . . Kick . | . . . . Crush . | . . . . Escape Stasis . | . . . . Rewire . | . . . . Trap . | . . . . Miscellaneous . | . . . . Route ------- -11/Scrapyard -10/Materials -9/Materials -9/Storage (discovered 1 exit: *Mat) History --------- Turn | Location | Event 19 | -11/Scrapyard | Discovered new exit (range 14) 79 | -11/Scrapyard | Entered Materials 207 | -10/Materials | Destroyed 8 combat bots 283 | -10/Materials | Discovered new exit (range 7) 291 | -10/Materials | Identified exit to Materials 293 | -10/Materials | Entered another Materials area 293 | -9/Materials | Evolved 2 slots: Propulsion x1, Utility x1 302 | -9/Materials | Build established: Mutant 672 | -9/Materials | Discovered new exit (range 3) 695 | -9/Materials | System corruption reached 10% 724 | -9/Materials | Identified exit to Storage 724 | -9/Materials | Entered Storage 725 | -9/Storage | Lost 5 parts (1p2u2w) 775 | -9/Storage | Assisted by bots powering up and referring to "LRC-V3" 1078 | -9/Storage | Garrison activated, responded to threat 1299 | -9/Storage | Core integrity fell below 50% 1330 | -9/Storage | Discovered new exit (range 12) 1376 | -9/Storage | Build established: Scavenger-Mutant 1423 | -9/Storage | Identified exit to Materials 1584 | -9/Storage | Self-destructed Last Messages --------------- 01513_ U-05 Engineer builds a Door. 01516_ K-01 Serf collects debris. 01522_ System corrupted: IFF burst signal emitted. 01524_ K-01 Serf collects debris. 01535_ The unstable cave ceiling collapses. 01535_ Lgt. Assault Rifle crushed. 01535_ Y-45 Defender destroyed. 01535_ K-01 Serf collects debris. 01539_ System corrupted: Heat flow error (+194). 01539_ Acquired 40 matter. 01541_ Acquired 5 matter. 01550_ K-01 Serf collects debris. 01551_ U-05 Engineer builds a Door. 01559_ Connecting with Terminal... >>Open Sealed Heavy Doors opened. 01563_ K-01 Serf collects debris. 01564_ U-05 Engineer lays Concrete. 01568_ W-16 Scout sends out distress signal. 01572_ System corrupted: Energy discharge (-72). Map ----- +----------------------------------------------------+ | | | | | | | | | ??????????????????????????????????????????? | | ??????????????????????????????????????????? | | ??????????????????????????????????????????? | | ??????????????????????????????????????????? | | ??????????????????????????????????????????? | | ??????????????????????????????????????????? | | ??????????????????????????????????????????? | | ??????????????????????????????????????????? | | ??????????????????????????????????????????? | | ??????????????????????????????????????????? | | ??????????????????????????????????????????? | | ??????????????????????????????????????????? | | ??????????????????????????????????????????? | | ??????????????????????????????????????????? | | ??????????????????????????????????????????? | | ??????????????????#############???????????? | | ??????????????????# ]![ #???????????? | | ??????????????????# [ !+???????????? | | ??????????????????# #???????????? | | ??????????????????# #???????????? | | ??????????????????# #???????????? | | ??????????????????# * @ #???????????? | | ??????????????????# # #????????? | | ??????????????????#######+##### #????????? | | ????????????############# #???? ##???????? | | ##??????????? # #### #???????? | | #??????????????? """" + #???????? | | ????????????????? """" # T +???????? | | ????????????????? """" # ### #???????? | | ??????????????""" """" # ###"+###???????? | | ??????????# + + #???????? | | ????????????????######## # #???????? | | #??????????????????????# # #???????? | | ????????????????????##### # #???????? | | ???????????????????## + # #???????? | | ###????????????????#T # !# !! ##??????? | | #????????????????## ## %+! !! "#?????? | | #?????????????????#==## [#[ ##??????? | | #?????????????????#==## ## #???????? | | ###?????????????????#==## ## #???????? | | #?????????????????##### ## ! #???????? | | #???????####?????????## #########???????? | | #???????#"""###????#### # #"T"######????? | | " """#?####"Y"# ######"##+## #????? | | " R"#?# !!# *= ##???? | | " """#?# !=%!# = """"" T#???? | +----------------------------------------------------+ Best States ------------- Heat Dissipation 50 Energy Generation 14 Energy Capacity 280 Matter Stores 300 Matter Capacity 300 Sight Range 18 Terrain Scan Density 10 Armor Coverage 150 Evasion (%) 64 Recoil Reduction 3 Offensive Hacking 10 Item Schematics ----------------- Imp. Deuterium Engine | -9/Storage | Hacked System Backup Module | -9/Storage | Hacked Robot Schematics ------------------ None Fabricated ------------ Nothing Alien Tech Used ----------------- None Achievements -------------- None Challenges ------------ None Game ------ Seed OmegaNuclearSword Manual? 0 Play Time 00:18:29 Cumulative 107.4 hours Start 2019.11.04 @ 21:42:01 End 2019.11.04 @ 22:00:27 Sessions 1 Manual Loads 0 Difficulty Rogue Special Mode None Game No. 182 Rogue 182 Adventurer 0 Explorer 0 Win Type - Total 0 Types 0/0/0/0/0/0/0 Lore% 33 Gallery% 48 Achievement% 34 Wizard Run 0 Options --------- ASCII 0 Keyboard 0 Movement Mouse Keybinds 0 Fullscreen 1 Font 18/SmallcapsGlow Map View 76x50 Tactical HUD 1 Map Filters NONE Filters NONE Steam 1 RUN: 1d3ea975-4237-4cb0-aa29-cde00ec63138